fUSD/lending_fUSD_20240718
["ID","MTS","AMOUNT","RATE_DAILY","PERIOD"]
[332528978,1721288069788,-780.84,0.00025479,2]
[332528979,1721288069798,-985.19,0.00025479,2]
[332528980,1721288069807,-2219.16,0.00025479,2]
[332528981,1721288069816,-661.47,0.00025479,2]
[332528982,1721288069825,-2008.64,0.00025479,2]
[332528983,1721288069834,-707.34,0.00025479,2]
[332528984,1721288069843,-776.84,0.00025479,2]
[332528985,1721288069852,-500.0,0.00025479,2]
[332528986,1721288069862,-2197.33,0.00025479,2]
[332528987,1721288069871,-442.51830392,0.00025479,2]
[332528988,1721288069880,-813.45,0.00025479,2]
[332528989,1721288069890,-6067.08,0.00025479,2]
[332528990,1721288069899,-1222.6,0.00025479,2]
[332528991,1721288069908,-685.95,0.00025479,2]
[332528992,1721288069918,-885.84,0.00025479,2]
[332528993,1721288069928,-500.0,0.00025479,2]
[332528994,1721288069938,-514.80117346,0.00025479,2]
[332528995,1721288069948,-589.04,0.00025479,2]
[332528996,1721288069959,-703.44,0.00025479,2]
[332528997,1721288069969,-919.77,0.00025479,2]
[332528998,1721288069979,-2956.08,0.00025479,2]
[332528999,1721288069990,-699.95,0.00025479,2]
[332529000,1721288069999,-500.0,0.00025479,2]
[332529001,1721288070008,-758.73,0.00025479,2]
[332529002,1721288070017,-1023.99,0.00025479,2]
[332529003,1721288070027,-893.45,0.00025479,2]
[332529004,1721288070037,-1159.85,0.00025479,2]
[332529005,1721288070046,-500.0,0.00025479,2]
[332529006,1721288070055,-799.42,0.00025479,2]
[332529007,1721288070065,-1005.0,0.00025606,2]
[332529008,1721288070075,-979.61,0.00025607,2]
[332529009,1721288070084,-416.31216634,0.00025698,2]
[332529010,1721288070094,-2000.0,0.000257,2]
[332529011,1721288070103,-954.82,0.00025736,7]
[332529012,1721288070113,-954.82,0.00025736,7]
[332529013,1721288070122,-151.0,0.0002574,2]
[332529014,1721288070132,-816.14,0.00025753,2]
[332529015,1721288070141,-1548.92,0.00025753,2]
[332529016,1721288070151,-903.45,0.00025753,2]
[332529017,1721288070160,-500.0,0.00025753,2]
[332529018,1721288070169,-873.73,0.00025753,2]
[332529019,1721288070179,-390.54314403,0.00025753,2]
[332529020,1721288070188,-1146.78,0.00025753,2]
[332529021,1721288070198,-500.0,0.00025753,2]
[332529022,1721288070207,-500.0,0.00025753,2]
[332529023,1721288070217,-755.65,0.00025753,2]
[332529024,1721288070226,-500.0,0.00025753,2]
[332529025,1721288070236,-1117.53,0.00025753,2]
[332529026,1721288070246,-1014.34,0.00025753,2]
[332529027,1721288070256,-500.0,0.00025753,2]
[332529028,1721288070265,-500.0,0.00025753,2]
[332529029,1721288070274,-926.9,0.00025753,2]
[332529030,1721288070283,-500.0,0.00025753,2]
[332529031,1721288070292,-559.52,0.00025753,2]
[332529032,1721288070302,-1202.57,0.00025753,2]
[332529033,1721288070312,-500.0,0.00025753,2]
[332529034,1721288070322,-686.6,0.00025753,2]
[332529035,1721288070331,-698.02,0.00025753,2]
[332529036,1721288070341,-500.0,0.00025753,2]
[332529037,1721288070350,-500.0,0.00025753,2]
[332529038,1721288070359,-506.744735,0.00025753,2]
[332529039,1721288070368,-568.02,0.00025753,2]
[332529040,1721288070378,-500.0,0.00025753,2]
[332529041,1721288070388,-506.5,0.00025753,2]
[332529042,1721288070397,-579.89,0.00025753,2]
[332529043,1721288070406,-888.04,0.00025753,2]
[332529044,1721288070415,-877.77,0.00025753,2]
[332529045,1721288070424,-500.0,0.00025753,2]
[332529046,1721288070433,-500.0,0.00025753,2]
[332529047,1721288070443,-500.0,0.00025753,2]
[332529048,1721288070452,-689.95,0.00025753,2]
[332529049,1721288070461,-887.13,0.00025753,2]
[332529050,1721288070471,-512.75,0.00025753,2]
[332529051,1721288070481,-918.48,0.00025753,2]
[332529052,1721288070492,-500.0,0.00025753,2]
[332529053,1721288070501,-1130.16,0.00025753,2]
[332529054,1721288070511,-500.0,0.00025753,2]
[332529055,1721288070520,-500.0,0.00025753,2]
[332529056,1721288070529,-1018.39,0.00025753,2]
[332529057,1721288070539,-500.0,0.00025753,2]
[332529058,1721288070549,-500.0,0.00025753,2]
[332529059,1721288070559,-582.9,0.00025753,2]
[332529060,1721288070568,-500.0,0.00025753,2]
[332529061,1721288070577,-629.0,0.00025753,2]
[332529062,1721288070586,-682.95,0.00025753,2]
[332529063,1721288070595,-1036.97,0.00025753,2]
[332529064,1721288070604,-688.35,0.00025753,2]
[332529065,1721288070613,-500.0,0.00025753,2]
[332529066,1721288070622,-851.26,0.00025753,2]
[332529067,1721288070631,-1046.3,0.00025753,2]
[332529068,1721288070640,-500.0,0.00025753,2]
[332529069,1721288070650,-988.22,0.00025753,2]
[332529070,1721288070664,-500.0,0.00025753,2]
[332529071,1721288070674,-500.0,0.00025753,2]
[332529072,1721288070684,-500.0,0.00025753,2]
[332529073,1721288070694,-864.94,0.00025753,2]
[332529074,1721288070704,-704.02,0.00025753,2]
[332529075,1721288070714,-791.51,0.00025753,2]
[332529076,1721288070723,-637.96,0.00025753,2]
[332529077,1721288070734,-645.57,0.00025753,2]
[332529078,1721288070745,-500.0,0.00025753,2]
[332529079,1721288070755,-632.83,0.00025753,2]
[332529080,1721288070764,-654.28,0.00025753,2]
[332529081,1721288070774,-616.18,0.00025753,2]
[332529082,1721288070783,-673.07,0.00025753,2]
[332529083,1721288070792,-500.0,0.00025753,2]
[332529084,1721288070802,-530.94,0.00025753,2]
[332529085,1721288070811,-527.98,0.00025753,2]
[332529086,1721288070820,-547.08,0.00025753,2]
[332529087,1721288070830,-559.75,0.00025753,2]
[332529088,1721288070840,-611.76,0.00025753,2]
[332529089,1721288070849,-1173.23,0.00025753,2]
[332529090,1721288070858,-709.13,0.00025753,2]
[332529091,1721288070868,-753.22,0.00025753,2]
[332529092,1721288070878,-571.73,0.00025753,2]
[332529093,1721288070887,-588.29273553,0.00025753,2]
[332529094,1721288070896,-500.0,0.00025753,2]
[332529095,1721288070906,-679.34,0.00025753,2]
[332529096,1721288070915,-393.7,0.00025753,2]
[332529097,1721288070925,-408.70196016,0.00025753,2]
[332529098,1721288070934,-500.0,0.00025753,2]
[332529099,1721288070943,-771.42,0.00025753,2]
[332529100,1721288070953,-500.0,0.00025753,2]
[332529101,1721288070963,-500.0,0.00025753,2]
[332529102,1721288070973,-1055.96,0.00025753,2]
[332529103,1721288070982,-500.0,0.00025753,2]
[332529104,1721288070991,-500.0,0.00025753,2]
[332529105,1721288071001,-756.04,0.00025753,2]
[332529106,1721288071010,-703.28,0.00025753,2]
[332529107,1721288071020,-750.7,0.00025753,2]
[332529108,1721288071030,-500.0,0.00025753,2]
[332529109,1721288071039,-500.0,0.00025753,2]
[332529110,1721288071049,-500.0,0.00025753,2]
[332529111,1721288071063,-1168.54,0.00025753,2]
[332529112,1721288071072,-504.82727459,0.00025753,2]
[332529113,1721288071081,-167.03352941,0.00025753,2]
[332529114,1721288071091,-386.42812512,0.00025753,2]
[332529115,1721288071101,-1538.77,0.00025753,2]
[332529116,1721288071111,-926.42,0.00025753,2]
[332529117,1721288071120,-1335.62,0.00025753,2]
[332529118,1721288071130,-1229.0,0.00025753,2]
[332529119,1721288071139,-500.0,0.00025753,2]
[332529120,1721288071149,-984.25,0.00025753,2]
[332529121,1721288071159,-1387.55,0.00025753,2]
[332529122,1721288071168,-500.0,0.00025753,2]
[332529123,1721288071178,-500.0,0.00025753,2]
[332529124,1721288071188,-925.35,0.00025753,2]
[332529125,1721288071197,-542.52,0.00025753,2]
[332529126,1721288071207,-500.0,0.00025753,2]
[332529127,1721288071217,-500.0,0.00025753,2]
[332529128,1721288071226,-500.0,0.00025753,2]
[332529129,1721288071237,-1699.26,0.00025753,2]
[332529130,1721288071247,-542.08,0.00025753,2]
[332529131,1721288071256,-560.08,0.00025753,2]
[332529132,1721288071265,-500.0,0.00025753,2]
[332529133,1721288071275,-500.0,0.00025753,2]
[332529134,1721288071285,-604.21073925,0.00025753,2]
[332529135,1721288071294,-1355.83,0.00025753,2]
[332529136,1721288071303,-505.95,0.00025753,2]
[332529137,1721288071313,-500.0,0.00025753,2]
[332529138,1721288071323,-628.74,0.00025753,2]
[332529139,1721288071333,-500.0,0.00025753,2]
[332529140,1721288071342,-676.4,0.00025753,2]
[332529141,1721288071351,-538.06,0.00025753,2]
[332529142,1721288071361,-500.0,0.00025753,2]
[332529143,1721288071370,-1065.58,0.00025753,2]
[332529144,1721288071380,-1408.6,0.00025753,7]
[332529145,1721288071389,-872.67,0.00025753,2]
[332529146,1721288071399,-1348.92,0.00025753,2]
[332529147,1721288071409,-838.7,0.00025753,2]
[332529148,1721288071418,-170.11046071,0.00025753,2]
[332529149,1721288071428,-503.03,0.00025753,2]
[332529150,1721288071468,-500.0,0.00025753,2]
[332529151,1721288071479,-500.0,0.00025753,2]
[332529152,1721288071489,-358.15314314,0.00025753,2]
[332529153,1721288071499,-802.6,0.00025753,2]
[332529154,1721288071508,-780.83,0.00025753,2]
[332529155,1721288071518,-579.37,0.00025753,2]
[332529156,1721288071528,-781.35,0.00025753,2]
[332529157,1721288071537,-724.1,0.00025753,2]
[332529158,1721288071546,-500.0,0.00025753,2]
[332529159,1721288071556,-568.82,0.00025753,2]
[332529160,1721288071565,-1287.42,0.00025753,2]
[332529161,1721288071575,-771.73,0.00025753,2]
[332529162,1721288071585,-1353.92,0.00025753,2]
[332529163,1721288071594,-1387.82,0.00025753,2]
[332529164,1721288071604,-500.0,0.00025753,2]
[332529165,1721288071613,-500.0,0.00025753,2]
[332529166,1721288071623,-553.81,0.00025753,2]
[332529167,1721288071632,-570.6,0.00025753,2]
[332529168,1721288071642,-500.0,0.00025753,2]
[332529169,1721288071652,-911.72,0.00025753,2]
[332529170,1721288071664,-972.31,0.00025753,2]
[332529171,1721288071674,-500.0,0.00025753,2]
[332529172,1721288071684,-682.98,0.00025753,2]
[332529173,1721288071694,-1109.76,0.00025753,2]
[332529174,1721288071703,-819.38,0.00025753,2]
[332529175,1721288071713,-500.0,0.00025753,2]
[332529176,1721288071722,-836.26,0.00025753,2]
[332529177,1721288071735,-544.15,0.00025753,2]
[332529178,1721288071745,-500.0,0.00025753,2]
[332529179,1721288071755,-744.75,0.00025753,2]
[332529180,1721288071765,-659.68,0.00025753,2]
[332529181,1721288071774,-1074.46,0.00025753,2]
[332529182,1721288071784,-918.1,0.00025753,2]
[332529183,1721288071793,-637.37,0.00025753,2]
[332529184,1721288071802,-500.0,0.00025753,2]
[332529185,1721288071812,-941.47,0.00025753,2]
[332529186,1721288071822,-808.27,0.00025753,2]
[332529187,1721288071831,-1715.0,0.00025753,2]
[332529188,1721288071840,-543.92,0.00025753,2]
[332529189,1721288071849,-500.0,0.00025753,2]
[332529190,1721288071859,-848.98,0.00025753,2]
[332529191,1721288071869,-500.0,0.00025753,2]
[332529192,1721288071879,-702.02,0.00025753,2]
[332529193,1721288071889,-833.62,0.00025753,2]
[332529194,1721288071900,-747.03,0.00025753,2]
[332529195,1721288071910,-694.12,0.00025753,2]
[332529196,1721288071920,-1393.96,0.00025753,2]
[332529197,1721288071929,-923.3,0.00025753,2]
[332529198,1721288071939,-864.51,0.00025753,2]
[332529199,1721288071949,-874.63,0.00025753,2]
[332529200,1721288071959,-572.13,0.00025753,2]
[332529201,1721288071969,-500.0,0.00025753,2]
[332529202,1721288071978,-768.44,0.00025753,2]
[332529203,1721288071989,-919.94,0.00025753,2]
[332529204,1721288071998,-500.0,0.00025753,2]
[332529205,1721288072007,-500.0,0.00025753,2]
[332529206,1721288072017,-500.0,0.00025753,2]
[332529207,1721288072027,-500.0,0.00025753,2]
[332529208,1721288072036,-567.01,0.00025753,2]
[332529209,1721288072046,-750.97,0.00025753,2]
[332529210,1721288072055,-664.81,0.00025753,2]
[332529211,1721288072065,-500.0,0.00025753,2]
[332529212,1721288072075,-1439.37,0.00025753,2]
[332529213,1721288072085,-820.24,0.00025753,2]
[332529214,1721288072094,-500.0,0.00025753,2]
[332529215,1721288072104,-659.88,0.00025753,2]
[332529216,1721288072113,-500.0,0.00025753,2]
[332529217,1721288072123,-675.36,0.00025753,2]
[332529218,1721288072133,-1239.37,0.00025753,2]
[332529219,1721288072143,-587.43,0.00025753,2]
[332529220,1721288072153,-500.0,0.00025753,2]
[332529221,1721288072162,-476.50802714,0.00025753,2]
[332529222,1721288072171,-1037.75,0.00025753,2]
[332529223,1721288072181,-1312.95,0.00025753,2]
[332529224,1721288072191,-500.0,0.00025753,2]
[332529225,1721288072200,-500.0,0.00025753,2]
[332529226,1721288072210,-1508.18,0.00025753,2]
[332529227,1721288072219,-759.36,0.00025753,2]
[332529228,1721288072230,-589.69,0.00025753,2]
[332529229,1721288072240,-589.59,0.00025753,2]
[332529230,1721288072250,-500.0,0.00025753,2]
[332529231,1721288072259,-442.11263191,0.00025753,2]
[332529232,1721288072268,-519.36,0.00025753,2]
[332529233,1721288072278,-465.48,0.00025753,2]
[332529234,1721288072288,-500.0,0.00025753,2]
[332529235,1721288072298,-1570.3,0.00025753,2]
[332529236,1721288072308,-500.0,0.00025753,2]
[332529237,1721288072318,-684.5,0.00025753,2]
[332529238,1721288072328,-778.25,0.00025753,2]
[332529239,1721288072337,-1825.46,0.00025753,2]
[332529240,1721288072347,-647.56,0.00025753,2]
[332529241,1721288072357,-1501.12,0.00025753,2]
[332529242,1721288072366,-649.76,0.00025753,2]
[332529243,1721288072377,-698.16,0.00025753,2]
[332529244,1721288072386,-500.0,0.00025753,2]
[332529245,1721288072528,-369.34639821,0.00025753,2]
[332529246,1721288072543,-838.21,0.00025753,2]
[332529247,1721288072553,-832.49,0.00025753,2]
[332529248,1721288072564,-635.85,0.00025753,2]
[332529249,1721288072574,-1002.59,0.00025753,2]
[332529250,1721288072584,-325.94571009,0.00025753,2]
[332529251,1721288072595,-1264.99,0.00025753,2]
[332529252,1721288072606,-558.12,0.00025753,2]
[332529253,1721288072616,-667.65,0.00025753,2]
[332529254,1721288072626,-828.72,0.00025753,2]
[332529255,1721288072636,-825.13,0.00025753,2]
[332529256,1721288072645,-935.3,0.00025753,2]
[332529257,1721288072656,-500.0,0.00025753,2]
[332529258,1721288072669,-500.0,0.00025753,2]
[332529259,1721288072679,-572.09,0.00025753,2]
[332529260,1721288072689,-801.73,0.00025753,2]
[332529261,1721288072699,-829.06,0.00025753,2]
[332529262,1721288072710,-533.21,0.00025753,2]
[332529263,1721288072719,-1500.37,0.00025753,2]
[332529264,1721288072729,-993.33,0.00025753,2]
[332529265,1721288072741,-500.0,0.00025753,2]
[332529266,1721288072751,-614.68,0.00025753,2]
[332529267,1721288072761,-839.63,0.00025753,2]
[332529268,1721288072771,-1099.16,0.00025753,2]
[332529269,1721288072782,-2190.92,0.00025753,2]
[332529270,1721288072792,-769.89,0.00025753,2]
[332529271,1721288072801,-1387.79,0.00025753,2]
[332529272,1721288072811,-860.39,0.00025753,2]
[332529273,1721288072821,-916.75,0.00025753,2]
[332529274,1721288072831,-500.0,0.00025753,2]
[332529275,1721288072842,-621.09,0.00025753,2]
[332529276,1721288072851,-500.0,0.00025753,2]
[332529277,1721288072862,-2607.0,0.00025753,2]
[332529278,1721288072873,-934.95,0.00025753,2]
[332529279,1721288072883,-1185.83,0.00025753,2]
[332529280,1721288072893,-634.32,0.00025753,2]
[332529281,1721288072903,-714.68,0.00025753,2]
[332529282,1721288072914,-706.1,0.00025753,2]
[332529283,1721288072924,-992.23,0.00025753,2]
[332529284,1721288072934,-500.0,0.00025753,2]
[332529285,1721288072945,-719.06,0.00025753,2]
[332529286,1721288072955,-500.0,0.00025753,2]
[332529287,1721288072965,-879.71,0.00025753,2]
[332529288,1721288072975,-962.74,0.00025753,2]
[332529289,1721288072987,-4194.17,0.00025753,2]
[332529290,1721288072998,-500.0,0.00025753,2]
[332529291,1721288073008,-500.0,0.00025753,2]
[332529292,1721288073020,-515.28,0.00025753,2]
[332529293,1721288073030,-796.16,0.00025753,2]
[332529294,1721288073040,-845.59,0.00025753,2]
[332529295,1721288073049,-1343.67,0.00025753,2]
[332529296,1721288073060,-607.98,0.00025753,2]
[332529297,1721288073070,-884.87,0.00025753,2]
[332529298,1721288073080,-500.0,0.00025753,2]
[332529299,1721288073092,-563.78,0.00025753,2]
[332529300,1721288073102,-664.21,0.00025753,2]
[332529301,1721288073113,-619.48,0.00025753,2]
[332529302,1721288073123,-1023.41,0.00025753,2]
[332529303,1721288073133,-4286.57,0.00025753,2]
[332529304,1721288073143,-759.2,0.00025753,2]
[332529305,1721288073153,-500.0,0.00025753,2]
[332529306,1721288073163,-1303.0,0.00025753,2]
[332529307,1721288073173,-664.93,0.00025753,2]
[332529308,1721288073184,-799.99,0.00025753,2]
[332529309,1721288073194,-840.9,0.00025753,2]
[332529310,1721288073203,-779.15,0.00025753,2]
[332529311,1721288073213,-705.02,0.00025753,2]
[332529312,1721288073224,-500.0,0.00025753,2]
[332529313,1721288073235,-699.13,0.00025753,2]
[332529314,1721288073245,-712.43,0.00025753,2]
[332529315,1721288073254,-615.07,0.00025753,2]
[332529316,1721288073264,-640.55,0.00025753,2]
[332529317,1721288073274,-842.93,0.00025753,2]
[332529318,1721288073284,-1213.95,0.00025753,2]
[332529319,1721288073294,-515.65,0.00025753,2]
[332529320,1721288073303,-500.0,0.00025753,2]
[332529321,1721288073313,-964.94,0.00025753,2]
[332529322,1721288073323,-592.68,0.00025753,2]
[332529323,1721288073332,-6375.98,0.00025753,2]
[332529324,1721288073342,-1083.93,0.00025753,2]
[332529325,1721288073352,-1379.21,0.00025753,2]
[332529326,1721288073362,-1037.41,0.00025753,2]
[332529327,1721288073372,-500.0,0.00025753,2]
[332529328,1721288073381,-1777.51,0.00025753,2]
[332529329,1721288073390,-559.08,0.00025753,2]
[332529330,1721288073401,-1444.47,0.00025753,2]
[332529331,1721288073410,-1147.47,0.00025753,2]
[332529332,1721288073421,-815.97,0.00025753,2]
[332529333,1721288073431,-500.0,0.00025753,2]
[332529334,1721288073440,-1394.22,0.00025753,2]
[332529335,1721288073450,-1149.47,0.00025753,2]
[332529336,1721288073460,-588.95,0.00025753,2]
[332529337,1721288073470,-7884.99,0.00025753,2]
[332529338,1721288073480,-2350.96,0.00025753,2]
[332529339,1721288073491,-1142.52,0.00025753,2]
[332529340,1721288073501,-751.24,0.00025753,2]
[332529341,1721288073511,-518.01,0.00025753,2]
[332529342,1721288073522,-1047.43,0.00025753,2]
[332529343,1721288073532,-9262.82,0.00025753,2]
[332529344,1721288073542,-576.17,0.00025753,2]
[332529345,1721288073552,-817.71,0.00025753,2]
[332529346,1721288073562,-500.0,0.00025753,2]
[332529347,1721288073572,-567.84,0.00025753,2]
[332529348,1721288073582,-943.1,0.00025753,2]
[332529349,1721288073592,-714.81,0.00025753,2]
[332529350,1721288073602,-559.22,0.00025753,2]
[332529351,1721288073611,-1700.34,0.00025753,2]
[332529352,1721288073621,-595.86,0.00025753,2]
[332529353,1721288073631,-671.4,0.00025753,2]
[332529354,1721288073641,-897.02,0.00025753,2]
[332529355,1721288073651,-812.96,0.00025753,2]
[332529356,1721288073663,-709.03,0.00025753,2]
[332529357,1721288073672,-763.5,0.00025753,2]
[332529358,1721288073683,-919.85,0.00025753,2]
[332529359,1721288073694,-915.85,0.00025753,2]
[332529360,1721288073704,-1583.56,0.00025753,2]
[332529361,1721288073714,-634.02,0.00025753,2]
[332529362,1721288073724,-1450.66,0.00025753,2]
[332529363,1721288073734,-708.78,0.00025753,2]
[332529364,1721288073746,-948.76,0.00025753,2]
[332529365,1721288073756,-516.08614446,0.00025753,2]
[332529366,1721288073766,-1051.57,0.00025753,2]
[332529367,1721288073775,-2003.88,0.00025753,2]
[332529368,1721288073786,-601.06,0.00025753,2]
[332529369,1721288073796,-796.81,0.00025753,2]
[332529370,1721288073806,-515.65,0.00025753,2]
[332529371,1721288073816,-1013.83,0.00025753,2]
[332529372,1721288073826,-500.0,0.00025753,2]
[332529373,1721288073836,-544.27,0.00025753,2]
[332529374,1721288073845,-503.35,0.00025753,2]
[332529375,1721288073856,-1299.19,0.00025753,2]
[332529376,1721288073866,-500.0,0.00025753,2]
[332529377,1721288073876,-1547.31,0.00025753,2]
[332529378,1721288073886,-612.66,0.00025753,2]
[332529379,1721288073896,-957.7,0.00025753,2]
[332529380,1721288073906,-999.04,0.00025753,2]
[332529381,1721288073916,-677.55,0.00025753,2]
[332529382,1721288073926,-549.83,0.00025753,2]
[332529383,1721288073937,-798.47,0.00025753,2]
[332529384,1721288073946,-695.01,0.00025753,2]
[332529385,1721288073956,-518.09,0.00025753,2]
[332529386,1721288073966,-1656.81,0.00025753,2]
[332529387,1721288073976,-813.28,0.00025753,2]
[332529388,1721288073986,-945.22,0.00025753,2]
[332529389,1721288073995,-947.17,0.00025753,2]
[332529390,1721288074005,-539.79,0.00025753,2]
[332529391,1721288074015,-706.37,0.00025753,2]
[332529392,1721288074024,-1135.75,0.00025753,2]
[332529393,1721288074035,-673.53,0.00025753,2]
[332529394,1721288074045,-3128.96,0.00025753,2]
[332529395,1721288074055,-557.31,0.00025753,2]
[332529396,1721288074065,-669.1,0.00025753,2]
[332529397,1721288074074,-3223.32,0.00025753,2]
[332529398,1721288074084,-842.49,0.00025753,2]
[332529399,1721288074094,-542.57,0.00025753,2]
[332529400,1721288074103,-836.84,0.00025753,2]
[332529401,1721288074113,-884.02,0.00025753,2]
[332529402,1721288074123,-1416.46,0.00025753,2]
[332529403,1721288074133,-525.77,0.00025753,2]
[332529404,1721288074142,-500.0,0.00025753,2]
[332529405,1721288074152,-808.77,0.00025753,2]
[332529406,1721288074161,-813.18,0.00025753,2]
[332529407,1721288074171,-2204.96,0.00025753,2]
[332529408,1721288074182,-888.04,0.00025753,2]
[332529409,1721288074192,-500.0,0.00025753,2]
[332529410,1721288074202,-617.34,0.00025753,2]
[332529411,1721288074212,-503.15,0.00025753,2]
[332529412,1721288074222,-500.0,0.00025753,2]
[332529413,1721288074231,-550.97,0.00025753,2]
[332529414,1721288074242,-773.79,0.00025753,2]
[332529415,1721288074251,-1258.11,0.00025753,2]
[332529416,1721288074261,-556.49,0.00025753,2]
[332529417,1721288074271,-1541.61,0.00025753,2]
[332529418,1721288074281,-632.08103568,0.00025753,2]
[332529419,1721288074290,-1497.76,0.00025753,2]
[332529420,1721288074300,-923.36,0.00025753,2]
[332529421,1721288074309,-500.0,0.00025753,2]
[332529422,1721288074319,-698.16,0.00025753,2]
[332529423,1721288074329,-1777.63,0.00025753,2]
[332529424,1721288074338,-1751.66,0.00025753,2]
[332529425,1721288074347,-748.62,0.00025753,2]
[332529426,1721288074357,-1440.65,0.00025753,2]
[332529427,1721288074366,-500.0,0.00025753,2]
[332529428,1721288074377,-500.0,0.00025753,2]
[332529429,1721288074387,-600.34,0.00025753,2]
[332529430,1721288074397,-1459.37,0.00025753,2]
[332529431,1721288074406,-834.65,0.00025753,2]
[332529432,1721288074416,-574.9,0.00025753,2]
[332529433,1721288074426,-967.34,0.00025753,2]
[332529434,1721288074436,-945.46,0.00025753,2]
[332529435,1721288074446,-6789.46,0.00025753,2]
[332529436,1721288074455,-702.74,0.00025753,2]
[332529437,1721288074465,-1649.03,0.00025753,2]
[332529438,1721288074475,-1351.16,0.00025753,2]
[332529439,1721288074485,-846.83,0.00025753,2]
[332529440,1721288074496,-3838.48,0.00025753,2]
[332529441,1721288074506,-727.83,0.00025753,2]
[332529442,1721288074516,-1099.8,0.00025753,2]
[332529443,1721288074525,-592.88,0.00025753,2]
[332529444,1721288074534,-1314.69,0.00025753,2]
[332529445,1721288074544,-660.25,0.00025753,2]
[332529446,1721288074553,-1225.2,0.00025753,2]
[332529447,1721288074563,-690.8,0.00025753,2]
[332529448,1721288074573,-758.27,0.00025753,2]
[332529449,1721288074584,-815.9,0.00025753,2]
[332529450,1721288074594,-1445.6,0.00025753,2]
[332529451,1721288074603,-500.0,0.00025753,2]
[332529452,1721288074613,-764.9,0.00025753,2]
[332529453,1721288074622,-1211.24,0.00025753,2]
[332529454,1721288075002,-1017.79,0.00025753,2]
[332529455,1721288075028,-819.77,0.00025753,2]
[332529456,1721288075038,-843.65,0.00025753,2]
[332529457,1721288075048,-508.09,0.00025753,2]
[332529458,1721288075058,-4510.49,0.00025753,2]
[332529459,1721288075068,-1121.8,0.00025753,2]
[332529460,1721288075078,-548.62,0.00025753,2]
[332529461,1721288075088,-615.98,0.00025753,2]
[332529462,1721288075098,-461.41714154,0.00025753,2]
[332529463,1721288075108,-732.51,0.00025753,2]
[332529464,1721288075118,-727.51,0.00025753,2]
[332529465,1721288075128,-500.0,0.00025753,2]
[332529466,1721288075137,-699.69,0.00025753,2]
[332529467,1721288075147,-780.84,0.00025753,2]
[332529468,1721288075157,-985.19,0.00025753,2]
[332529469,1721288075166,-2219.16,0.00025753,2]
[332529470,1721288075176,-661.47,0.00025753,2]
[332529471,1721288075186,-2008.64,0.00025753,2]
[332529472,1721288075196,-707.34,0.00025753,2]
[332529473,1721288075206,-776.84,0.00025753,2]
[332529474,1721288075216,-2197.33,0.00025753,2]
[332529475,1721288075225,-813.45,0.00025753,2]
[332529476,1721288075236,-6067.08,0.00025753,2]
[332529477,1721288075246,-1222.6,0.00025753,2]